bitfinex/quotes_BTCUSD_20251226
["timestamp","ask_amount","ask_price","bid_price","bid_amount"]
[1766731521339,0.01120749,89226.0,89219.0,0.07296]
[1766731521739,0.01120762,89225.0,89219.0,0.07296]
[1766731521943,0.01120736,89227.0,89219.0,0.07296]
[1766731522103,0.01120749,89226.0,89219.0,0.07296]
[1766731522436,0.01120711,89229.0,89219.0,0.08416837]
[1766731522618,0.01120724,89228.0,89226.0,0.000549]
[1766731522822,0.01120724,89228.0,89224.0,0.07296]
[1766731523409,0.01120736,89227.0,89224.0,0.07296]
[1766731523618,0.01124,89230.0,89227.0,0.000549]
[1766731524122,0.01124,89230.0,89224.0,0.07296]
[1766731524762,0.01120724,89228.0,89219.0,0.01120837]
[1766731525152,0.01120736,89227.0,89217.0,0.08416862]
[1766731525338,0.01120736,89227.0,89217.0,0.07296]
[1766731525776,0.01120749,89226.0,89217.0,0.07296]
[1766731525990,0.01120774,89224.0,89214.0,0.011209]
[1766731526153,0.01120749,89226.0,89217.0,0.07296]
[1766731526582,0.01120749,89226.0,89217.0,0.08416862]
[1766731526971,0.01120749,89226.0,89217.0,0.07296]
[1766731526972,0.05603816,89225.0,89217.0,0.07296]
[1766731527176,0.01120749,89226.0,89217.0,0.07296]
[1766731527337,0.01120762,89225.0,89217.0,0.07296]
[1766731527542,0.01120749,89226.0,89217.0,0.08416862]
[1766731527749,0.01120762,89225.0,89217.0,0.07296]
[1766731528076,0.06724328,89229.0,89218.0,0.0112085]
[1766731528278,0.01120736,89227.0,89218.0,0.0112085]
[1766731528620,0.01120749,89226.0,89217.0,0.08416862]
[1766731529477,0.01120736,89227.0,89218.0,0.0112085]
[1766731529801,0.01120749,89226.0,89217.0,0.08416862]
[1766731532787,0.01120736,89227.0,89218.0,0.0112085]
[1766731533155,0.01120736,89227.0,89217.0,0.08416862]
[1766731533356,0.01120736,89227.0,89218.0,0.0112085]
[1766731533561,0.01120736,89227.0,89217.0,0.08416862]
[1766731533768,0.01120736,89227.0,89218.0,0.0112085]
[1766731533993,0.01120749,89226.0,89217.0,0.08416862]
[1766731535412,0.01120762,89225.0,89217.0,0.07296]
[1766731535633,0.01120749,89226.0,89217.0,0.08416862]
[1766731535777,0.01120762,89225.0,89217.0,0.07296]
[1766731536170,0.01120749,89226.0,89217.0,0.07296]
[1766731537105,0.01120749,89226.0,89217.0,0.08416862]
[1766731537314,0.01120762,89225.0,89217.0,0.07296]
[1766731537519,0.01120749,89226.0,89217.0,0.08416862]
[1766731537719,0.01120749,89226.0,89217.0,0.07296]
[1766731537925,0.01120762,89225.0,89217.0,0.07296]
[1766731539504,0.01120774,89224.0,89217.0,0.07296]
[1766731539708,0.01120762,89225.0,89217.0,0.07296]
[1766731540103,0.06724534,89226.0,89217.0,0.08416862]
[1766731540104,0.01120749,89226.0,89217.0,0.08416862]
[1766731540874,0.01120749,89226.0,89217.0,0.07296]
[1766731541230,0.01120762,89225.0,89217.0,0.07296]
[1766731542209,0.01120774,89224.0,89217.0,0.07296]
[1766731542577,0.01120749,89226.0,89217.0,0.07296]
[1766731543124,0.01120762,89225.0,89217.0,0.07296]
[1766731543342,0.01120749,89226.0,89217.0,0.08416862]
[1766731543722,0.01120749,89226.0,89217.0,0.07296]
[1766731544067,0.01120749,89226.0,89217.0,0.08416862]
[1766731544760,0.01120736,89227.0,89217.0,0.08416862]
[1766731544922,0.01120749,89226.0,89217.0,0.08416862]
[1766731545353,0.01120736,89227.0,89217.0,0.08416862]
[1766731545658,0.01120749,89226.0,89218.0,0.07155]
[1766731545823,0.01120736,89227.0,89218.0,0.0827585]
[1766731546257,0.01120736,89227.0,89218.0,0.07155]
[1766731546613,0.01120736,89227.0,89218.0,0.0827585]
[1766731547051,0.01120749,89226.0,89218.0,0.07155]
[1766731547229,0.01120736,89227.0,89218.0,0.0827585]
[1766731547836,0.01120749,89226.0,89218.0,0.07155]
[1766731548038,0.01120736,89227.0,89218.0,0.0827585]
[1766731548535,0.06724385,89228.0,89218.0,0.0827585]
[1766731548731,0.05603387,89232.0,89228.0,0.072099]
[1766731548956,0.06727528,89230.0,89228.0,0.072099]
[1766731549184,0.06727528,89230.0,89228.0,0.07155]
[1766731549557,0.01120711,89229.0,89228.0,0.07155]
[1766731550854,0.01120736,89227.0,89218.0,0.0112085]
[1766731551081,0.01120736,89227.0,89219.0,0.07155]
[1766731551268,0.01120749,89226.0,89219.0,0.07155]
[1766731551475,0.01120799,89222.0,89219.0,0.07155]
[1766731551678,0.01065899,89222.0,89212.0,0.07155]
[1766731552048,0.01120812,89221.0,89212.0,0.07155]
[1766731552254,0.0112085,89218.0,89212.0,0.07155]
[1766731552453,0.05604539,89214.0,89212.0,0.07155]
[1766731552637,0.01121013,89205.0,89199.0,0.07155]
[1766731552840,0.01120988,89207.0,89201.0,0.07155]
[1766731553058,0.01121025,89204.0,89201.0,0.07155]
[1766731553234,0.01120988,89207.0,89198.0,0.02241851]
[1766731553235,0.06725966,89207.0,89203.0,0.07155]
[1766731553441,0.1604067,89208.0,89203.0,0.07155]
[1766731553648,0.01121101,89198.0,89187.0,0.05605239]
[1766731553853,0.01121088,89199.0,89189.0,0.07155]
[1766731554077,0.01121076,89200.0,89191.0,0.07155]
[1766731554282,0.01121063,89201.0,89191.0,0.07155]
[1766731554458,0.01121051,89202.0,89192.0,0.01121176]
[1766731554656,0.01121051,89202.0,89193.0,0.07155]
[1766731555288,0.01121076,89200.0,89193.0,0.07155]
[1766731555497,0.01121076,89200.0,89195.0,0.07155]
[1766731555719,0.01121076,89200.0,89197.0,0.07155]
[1766731555919,3.8e-07,89203.0,89197.0,0.07155]
[1766731556731,0.01121076,89203.0,89197.0,0.07155]
[1766731557145,3.8e-07,89203.0,89197.0,0.07155]
[1766731557517,0.01121063,89201.0,89197.0,0.07155]
[1766731557717,0.01121051,89202.0,89197.0,0.07155]
[1766731558142,0.01121076,89203.0,89197.0,0.07155]
[1766731559027,0.01121051,89202.0,89197.0,0.07155]
[1766731559231,0.01121076,89203.0,89197.0,0.07155]
[1766731559429,0.01121051,89202.0,89197.0,0.07155]
[1766731559757,0.01121063,89201.0,89197.0,0.07155]
[1766731559911,0.01121076,89203.0,89197.0,0.07155]
[1766731560109,0.01121051,89202.0,89197.0,0.07155]
[1766731560762,0.01121076,89203.0,89197.0,0.07155]
[1766731560912,3.8e-07,89203.0,89197.0,0.07155]
[1766731561427,3.8e-07,89203.0,89197.0,0.08276113]
[1766731561633,3.8e-07,89203.0,89197.0,0.07155]
[1766731561854,3.8e-07,89203.0,89197.0,0.08276113]
[1766731563210,3.8e-07,89203.0,89197.0,0.07155]
[1766731564098,0.01121076,89203.0,89197.0,0.07155]
[1766731564421,3.8e-07,89203.0,89197.0,0.07155]
[1766731565655,0.01121051,89202.0,89197.0,0.071001]
[1766731565854,0.01121076,89200.0,89197.0,0.071001]
[1766731566229,0.01121051,89202.0,89197.0,0.071001]
[1766731567021,0.01121063,89201.0,89197.0,0.071001]
[1766731567207,0.01121051,89202.0,89197.0,0.071001]
[1766731567376,0.06726308,89202.0,89197.0,0.036071]
[1766731567719,3.8e-07,89203.0,89197.0,0.036071]
[1766731567881,0.01121051,89202.0,89197.0,0.036071]
[1766731568084,0.01121076,89203.0,89197.0,0.036071]
[1766731568319,3.8e-07,89203.0,89197.0,0.036071]
[1766731568763,0.01124,89202.0,89197.0,0.036071]
[1766731572430,0.01124,89202.0,89197.0,0.04728213]
[1766731572625,0.00362606,89202.0,89199.0,0.01121088]
[1766731573635,0.00362606,89202.0,89198.0,0.01121101]
[1766731574570,0.00362606,89202.0,89197.0,0.04728213]
[1766731574736,0.00362606,89202.0,89197.0,0.036071]
[1766731575141,0.00362606,89202.0,89197.0,0.04728213]
[1766731575339,0.00362606,89202.0,89198.0,0.01121101]
[1766731575781,0.00362606,89202.0,89194.0,0.01121151]
[1766731575927,0.000549,89198.0,89195.0,0.01121139]
[1766731576380,0.000549,89198.0,89194.0,0.01121151]
[1766731576682,0.00362606,89202.0,89194.0,0.01121151]
[1766731576845,0.00362606,89202.0,89192.0,0.08227176]
[1766731577045,0.00362606,89202.0,89192.0,0.13833023]
[1766731577263,0.00362606,89202.0,89194.0,0.01121151]
[1766731577845,0.00362606,89202.0,89192.0,0.07106]
[1766731578163,0.00362606,89202.0,89193.0,0.01121164]
[1766731578366,0.001099,89193.0,89184.0,0.01121277]
[1766731578530,0.01124,89192.0,89185.0,0.07106]
[1766731579507,0.01124,89192.0,89186.0,0.01121252]
[1766731579630,0.01124,89192.0,89185.0,0.08227264]
[1766731579835,0.01124,89192.0,89188.0,0.07106]
[1766731580979,0.02245176,89192.0,89182.0,0.01121302]
[1766731581156,0.02245176,89192.0,89171.0,0.22428609]
[1766731581157,0.01124,89192.0,89177.0,0.08227365]
[1766731581377,0.01124,89192.0,89182.0,0.08227302]
[1766731581582,0.01124,89192.0,89185.0,0.01121264]
[1766731582077,0.01124,89192.0,89184.0,0.01121277]
[1766731582620,0.01124,89192.0,89183.0,0.08227289]
[1766731582774,0.01124,89192.0,89184.0,0.01121277]
[1766731583176,0.01124,89192.0,89185.0,0.01121264]
[1766731583408,0.01124,89192.0,89185.0,0.08227264]
[1766731583609,0.01124,89192.0,89185.0,0.07106]
[1766731584618,0.02245176,89192.0,89185.0,0.07106]
[1766731584817,0.02245176,89192.0,89057.0,0.48502467]
[1766731584818,0.01121214,89189.0,89178.0,0.08227352]
[1766731585153,0.00055,89185.0,89180.0,0.01121327]
[1766731585344,0.01124,89192.0,89180.0,0.01121327]
[1766731585548,0.01121214,89189.0,89178.0,0.08227352]
[1766731586039,0.01121227,89188.0,89178.0,0.08227352]
[1766731586708,0.01121227,89188.0,89180.0,0.07106]
[1766731587442,0.01121239,89187.0,89180.0,0.07106]
[1766731587619,0.06727398,89188.0,89180.0,0.07106]
[1766731587791,0.01121289,89183.0,89180.0,0.07106]
[1766731587987,0.01121289,89183.0,89171.0,0.0112144]
[1766731587988,0.01121327,89180.0,89171.0,0.07106]
[1766731588188,0.01121315,89181.0,89171.0,0.0822744]
[1766731588424,0.01121302,89182.0,89172.0,0.08227428]
[1766731588629,0.01121327,89180.0,89172.0,0.07106]
[1766731589250,0.01121327,89180.0,89172.0,0.0714179]
[1766731589443,0.06727934,89181.0,89172.0,0.0714179]
[1766731590019,0.01121315,89181.0,89172.0,0.08263218]
[1766731590239,0.01121315,89181.0,89172.0,0.0714179]
[1766731590435,0.01121327,89180.0,89172.0,0.0714179]
[1766731590640,0.0112134,89179.0,89172.0,0.0714179]
[1766731590823,0.01121327,89180.0,89172.0,0.0714179]
[1766731591025,0.01121315,89181.0,89172.0,0.0714179]
[1766731591998,0.01121327,89180.0,89172.0,0.0714179]
[1766731592856,0.0112134,89179.0,89172.0,0.0714179]
[1766731593073,0.01121327,89180.0,89172.0,0.0714179]
[1766731593837,0.0112134,89179.0,89172.0,0.0714179]
[1766731593963,0.01121327,89180.0,89172.0,0.0714179]
[1766731595569,0.01121315,89181.0,89172.0,0.0714179]
[1766731597033,0.01121327,89180.0,89172.0,0.0714179]
[1766731597501,0.0112134,89179.0,89172.0,0.0714179]
[1766731597931,0.01121327,89180.0,89172.0,0.0714179]
[1766731598555,0.0112134,89179.0,89172.0,0.0714179]
[1766731599109,0.01121327,89180.0,89172.0,0.0714179]
[1766731599718,0.01121315,89181.0,89172.0,0.0714179]
[1766731600206,0.01121327,89180.0,89172.0,0.0714179]
[1766731601068,0.0112134,89179.0,89172.0,0.0714179]
[1766731601270,0.01121327,89180.0,89172.0,0.0714179]
[1766731602191,0.08969846,89180.0,89167.0,0.01121491]
[1766731602490,0.01121352,89178.0,89168.0,0.01121478]
[1766731602655,0.02245365,89177.0,89167.0,6.408e-05]
[1766731602851,0.01121377,89176.0,89167.0,6.408e-05]
[1766731603273,0.0112144,89171.0,89167.0,6.408e-05]
[1766731603653,0.01121478,89168.0,89160.0,0.01124]
[1766731603875,0.01121478,89168.0,89160.0,0.0113041]
[1766731604075,0.01121465,89169.0,89160.0,0.0113041]
[1766731604478,0.01121478,89168.0,89160.0,0.0113041]
[1766731604678,0.01121465,89169.0,89160.0,0.02251989]
[1766731604881,0.01121465,89169.0,89160.0,0.0113041]
[1766731605084,0.000486,89160.0,89158.0,0.07443]
[1766731605247,0.000486,89160.0,89158.0,0.0745262]
[1766731605451,0.05656536,89160.0,89158.0,0.0745262]
[1766731605651,0.01121554,89162.0,89158.0,0.0745262]
[1766731605850,0.01121541,89163.0,89158.0,0.0745262]
[1766731606087,0.01121566,89161.0,89158.0,9.62e-05]
[1766731606289,0.01121642,89155.0,89152.0,0.0004]
[1766731606552,9.6e-05,89158.0,89155.0,6.3e-05]
[1766731606749,0.01121604,89158.0,89152.0,0.00050721]
[1766731607101,0.01121616,89157.0,89152.0,0.00050721]
[1766731607303,0.01121604,89158.0,89152.0,0.00050721]
[1766731607521,0.01121616,89157.0,89152.0,0.00050721]
[1766731607798,0.01121604,89158.0,89152.0,0.00050721]
[1766731607965,0.01121616,89157.0,89152.0,0.00050721]
[1766731608484,0.01121629,89156.0,89152.0,0.00050721]
[1766731608693,0.01121604,89158.0,89152.0,0.00050721]
[1766731609640,0.01121642,89155.0,89152.0,0.00050721]
[1766731609841,0.01121616,89157.0,89152.0,0.00050721]
[1766731609842,0.01121629,89156.0,89152.0,0.00050721]
[1766731610094,0.01121616,89157.0,89152.0,0.00050721]
[1766731611177,0.01121579,89160.0,89157.0,6.3e-05]
[1766731611377,0.06731844,89161.0,89152.0,0.00050721]
[1766731611378,0.01124,89161.0,89153.0,0.01121667]
[1766731611581,0.06728529,89173.0,89162.0,0.07346]
[1766731611781,0.06728379,89175.0,89164.0,0.07346]
[1766731612104,0.01121453,89170.0,89164.0,0.07346]
[1766731614143,0.01121465,89169.0,89164.0,0.07346]
[1766731614401,0.01121453,89170.0,89164.0,0.07346]
[1766731614944,0.0112144,89171.0,89164.0,0.07346]
[1766731616314,0.01121415,89173.0,89164.0,0.07346]
[1766731616498,0.01121415,89173.0,89164.0,0.08467528]
[1766731616685,0.01121365,89177.0,89173.0,6.3e-05]
[1766731616887,0.01121302,89182.0,89177.0,0.00055]
[1766731617085,0.01124,89179.0,89174.0,0.07346]
[1766731617435,0.01121189,89191.0,89179.0,0.0112134]
[1766731617637,0.01124,89190.0,89184.0,0.07346]
[1766731617788,0.011177,89190.0,89184.0,0.08467277]
[1766731618109,0.011177,89190.0,89186.0,0.07346]
[1766731618471,0.01124,89192.0,89187.0,0.07346]
[1766731618667,0.01124,89193.0,89187.0,0.07356721]
[1766731618871,0.01121113,89197.0,89187.0,0.07356721]
[1766731619104,0.05605318,89201.0,89191.0,0.07346]
[1766731619303,0.01124,89200.0,89192.0,0.08467176]
[1766731619482,0.01121088,89199.0,89192.0,0.07346]
[1766731619888,0.02245076,89200.0,89192.0,0.07346]
[1766731620307,0.01121088,89199.0,89192.0,0.07346]
[1766731620629,0.01121101,89198.0,89192.0,0.07346]
[1766731621561,0.01121126,89196.0,89192.0,0.072911]
[1766731622150,0.01121201,89190.0,89186.0,0.07346]
[1766731622349,0.01121252,89186.0,89179.0,0.07346]
[1766731622495,0.01121264,89185.0,89179.0,0.0738174]
[1766731623051,0.01121252,89186.0,89179.0,0.0738174]
[1766731623266,0.01121264,89185.0,89179.0,0.0738174]
[1766731623828,0.01121289,89183.0,89179.0,0.0738174]
[1766731624029,0.01121264,89185.0,89179.0,0.0003574]
[1766731624462,0.0560687,89177.0,89171.0,0.03365475]
[1766731624654,0.0560687,89177.0,89152.0,0.02281851]
[1766731624655,0.05651567,89171.0,89153.0,0.07346]
[1766731624831,0.01121629,89156.0,89153.0,0.05687735]
[1766731625230,0.0672976,89157.0,89153.0,0.05687735]
[1766731625231,0.01121616,89157.0,89153.0,0.05687735]
[1766731625447,0.01121604,89158.0,89153.0,0.05687735]
[1766731625898,0.01121616,89157.0,89153.0,0.05687735]
[1766731626116,0.01121629,89156.0,89153.0,0.05632835]
[1766731627126,0.01121642,89155.0,89152.0,0.0004]
[1766731627327,0.01121667,89153.0,89150.0,0.01124]
[1766731627608,0.01121679,89152.0,89147.0,0.07346]
[1766731628204,0.06729931,89154.0,89147.0,0.07346]
[1766731628487,0.01121679,89152.0,89147.0,0.07346]
[1766731628643,0.01121679,89152.0,89149.0,0.00034644]
[1766731628821,0.01121667,89153.0,89149.0,0.00034644]
[1766731629031,0.06730104,89152.0,89149.0,0.00034644]
[1766731629630,0.05608524,89150.0,89149.0,0.00034644]
[1766731629841,0.05608523,89151.0,89149.0,0.00019644]
[1766731630461,0.06730104,89152.0,89149.0,0.00019644]
[1766731630956,0.06730104,89152.0,89149.0,0.00029282]
[1766731632283,0.05608513,89151.0,89149.0,0.00029282]
[1766731632493,0.06730104,89152.0,89149.0,0.00029282]
[1766731634349,0.05608516,89151.0,89149.0,0.00029282]
[1766731635197,0.05608524,89150.0,89149.0,0.00029282]
[1766731635404,0.06730104,89152.0,89149.0,0.00029282]
[1766731635535,0.05608524,89150.0,89149.0,0.00029282]
[1766731635946,0.01121767,89145.0,89142.0,0.0004]
[1766731636160,0.0112173,89148.0,89145.0,0.000549]
[1766731636605,0.0112173,89148.0,89142.0,0.0004]
[1766731636854,0.01121767,89145.0,89142.0,0.0004]
[1766731637719,0.01121767,89145.0,89133.0,0.0004]
[1766731637720,0.06731302,89136.0,89133.0,0.0004]
[1766731637981,0.06731613,89132.0,89124.0,0.07056]
[1766731639072,0.06731613,89132.0,89118.0,0.0004]
[1766731639288,0.06731613,89132.0,89118.0,0.01162107]
[1766731639716,0.06731613,89132.0,89119.0,0.01122095]
[1766731639934,0.06731613,89132.0,89118.0,0.0004]
[1766731640142,0.06731613,89132.0,89129.0,1e-08]
[1766731640414,0.05609909,89128.0,89127.0,1e-08]
[1766731640549,0.06733909,89128.0,89127.0,0.00010736]
[1766731641155,0.01124,89128.0,89127.0,0.00010736]
[1766731641537,0.53407584,89171.0,89131.0,0.07056]
[1766731641538,0.01121805,89142.0,89131.0,0.07056]
[1766731641747,0.0112183,89140.0,89131.0,0.08177944]
[1766731641882,0.02245843,89139.0,89131.0,0.07056]
[1766731642082,0.01121843,89139.0,89131.0,0.07056]
[1766731642299,0.01121855,89138.0,89127.0,0.00010736]
[1766731642477,0.01124,89138.0,89130.0,0.07056]
[1766731642680,0.01121881,89136.0,89130.0,0.07056]
[1766731642907,0.01124,89139.0,89132.0,0.07056]
[1766731643355,0.01124,89144.0,89135.0,0.07056]
[1766731643568,0.01121793,89143.0,89135.0,0.07056]
[1766731643778,0.01121805,89142.0,89135.0,0.07056]
[1766731643987,0.01121843,89139.0,89135.0,0.07056]
[1766731644439,0.01092111,89139.0,89135.0,0.07056]
[1766731644676,0.0112183,89140.0,89135.0,0.07056]
[1766731644882,0.01121843,89139.0,89135.0,0.07056]
[1766731645084,0.0112183,89140.0,89135.0,0.07056]
[1766731647015,0.00352692,89142.0,89135.0,0.07056]
[1766731647238,0.01121793,89143.0,89134.0,0.07056]
[1766731647470,0.01121818,89141.0,89134.0,0.07056]
[1766731648379,0.01121793,89143.0,89134.0,0.07056]
[1766731649453,0.01121805,89142.0,89134.0,0.07056]
[1766731650568,0.0112183,89140.0,89134.0,0.07056]
[1766731650786,0.01121818,89141.0,89134.0,0.07056]
[1766731651196,0.06732955,89144.0,89116.0,0.0004]
[1766731651197,0.01121994,89127.0,89116.0,0.0004]
[1766731651412,0.01121931,89132.0,89121.0,0.07056]
[1766731651413,0.01124,89126.0,89121.0,0.07056]
[1766731651608,0.01124,89132.0,89123.0,0.07056]
[1766731651903,0.06733666,89132.0,89121.0,0.07056]
[1766731652081,0.01121956,89130.0,89119.0,0.08178095]
[1766731652285,0.01121956,89130.0,89122.0,0.07056]
[1766731652676,0.01121994,89127.0,89122.0,0.07056]
[1766731653385,0.01122007,89126.0,89122.0,0.07056]
[1766731653589,0.01121994,89127.0,89122.0,0.07056]
[1766731654143,0.01121981,89128.0,89122.0,0.07056]
[1766731654463,0.01122019,89125.0,89122.0,0.07056]
[1766731654868,0.01122069,89121.0,89118.0,0.0004]
[1766731655341,0.06732459,89121.0,89118.0,0.0004]
[1766731655477,0.01122095,89119.0,89116.0,0.0004]
[1766731655987,0.01122095,89119.0,89116.0,0.000251]
[1766731656524,0.01124,89118.0,89116.0,0.000251]
[1766731656940,0.06734584,89118.0,89116.0,0.000251]
[1766731657140,0.06734584,89118.0,89116.0,1e-08]
[1766731657918,0.01124,89118.0,89116.0,1e-08]
[1766731658320,0.010691,89118.0,89116.0,1e-08]
[1766731659434,0.06679639,89118.0,89116.0,1e-08]
[1766731659877,0.010691,89118.0,89116.0,1e-08]
[1766731664231,0.06679678,89118.0,89116.0,1e-08]
[1766731665351,0.010691,89118.0,89116.0,1e-08]
[1766731668949,0.06679681,89118.0,89116.0,1e-08]
[1766731671333,0.010691,89118.0,89116.0,1e-08]
[1766731671643,0.06679673,89118.0,89116.0,1e-08]
[1766731671848,0.010691,89118.0,89116.0,1e-08]
[1766731676885,0.01121981,89128.0,89119.0,0.07152]
[1766731677090,0.01124,89127.0,89119.0,0.07152]
[1766731677266,0.01124,89127.0,89121.0,0.07152]
[1766731678482,0.01122007,89126.0,89121.0,0.07152]
[1766731678679,0.01122007,89126.0,89116.0,0.01122133]
[1766731679068,0.01122007,89126.0,89117.0,0.0112212]
[1766731679584,0.01122019,89125.0,89116.0,0.01122133]
[1766731679753,0.01122007,89126.0,89116.0,0.01122133]
[1766731679952,0.01090594,89126.0,89116.0,0.01122133]
[1766731680359,0.01122019,89125.0,89116.0,1e-08]
[1766731680632,0.01122044,89123.0,89116.0,1e-08]
[1766731681210,0.06732609,89119.0,89116.0,1e-08]
[1766731681426,0.05610584,89118.0,89116.0,1e-08]
[1766731681645,0.01122183,89112.0,89109.0,0.0004]
[1766731681802,0.0112217,89113.0,89106.0,0.00026787]
[1766731682003,0.01122158,89114.0,89106.0,0.00026787]
[1766731682203,0.01122145,89115.0,89106.0,0.00026787]
[1766731682407,0.01122158,89114.0,89106.0,0.00026787]
[1766731683553,0.01122132,89116.0,89106.0,0.01149045]
[1766731683755,0.01122145,89115.0,89106.0,0.01149045]
[1766731684458,0.06732723,89118.0,89108.0,0.01122233]
[1766731684676,0.41065601,89120.0,89115.0,0.0004]
[1766731684891,0.01124,89120.0,89115.0,0.0004]
[1766731685091,0.01124,89120.0,89111.0,0.01122195]
[1766731685299,0.01124,89120.0,89113.0,0.0112217]
[1766731685504,0.01124,89120.0,89114.0,0.08274158]
[1766731685705,0.01124,89120.0,89114.0,0.07152]
[1766731685916,0.01122032,89124.0,89115.0,0.01122145]
[1766731686125,0.01124,89119.0,89115.0,0.01122145]
[1766731686328,0.01124,89119.0,89114.0,0.08274158]
[1766731687292,0.01124,89121.0,89115.0,0.07152]
[1766731687904,0.01124,89121.0,89116.0,0.01122132]
[1766731688123,0.01124,89121.0,89115.0,0.08274145]
[1766731688281,0.01124,89121.0,89116.0,0.01122132]
[1766731688462,0.01124,89121.0,89115.0,0.08274145]
[1766731688762,0.01124,89121.0,89116.0,0.01122132]
[1766731688964,0.01124,89121.0,89115.0,0.08274145]
[1766731689362,0.01124,89126.0,89119.0,0.07152]
[1766731689567,0.02246007,89126.0,89119.0,0.07152]
[1766731689775,0.01124,89126.0,89119.0,0.07152]
[1766731689980,0.01122019,89125.0,89119.0,0.07152]
[1766731690564,0.02246007,89126.0,89119.0,0.07152]
[1766731690788,0.01124,89126.0,89119.0,0.07152]
[1766731691211,0.01124,89127.0,89119.0,0.08274095]
[1766731691388,0.01124,89127.0,89120.0,0.01122082]
[1766731691586,0.01124,89127.0,89119.0,0.08274095]
[1766731692422,0.01121969,89129.0,89119.0,0.07152]
[1766731692620,0.00703862,89127.0,89121.0,0.01122069]
[1766731692951,0.01124,89128.0,89122.0,0.01122057]
[1766731693149,0.01124,89128.0,89123.0,0.01122044]
[1766731693346,0.01124,89128.0,89124.0,0.08274032]
[1766731693542,0.01124,89128.0,89124.0,0.07152]
[1766731695102,0.01124,89128.0,89124.0,0.08274032]
[1766731695318,0.01124,89128.0,89124.0,0.07152]
[1766731695525,0.01124,89128.0,89124.0,0.08274032]
[1766731695858,0.01124,89128.0,89124.0,0.07152]
[1766731696165,0.00865316,89128.0,89124.0,0.07152]
[1766731698776,0.01865316,89128.0,89124.0,0.07152]
[1766731701366,0.01124,89133.0,89126.0,0.07894007]
[1766731701574,0.01124,89133.0,89127.0,0.06772]
[1766731702375,0.01124,89133.0,89129.0,0.01121969]
[1766731702736,0.01124,89133.0,89129.0,0.07893969]
[1766731703894,0.01128808,89133.0,89130.0,0.01121956]
[1766731704110,0.01124,89137.0,89131.0,0.06772]
[1766731704914,0.39922795,89141.0,89134.0,0.06772]
[1766731705112,0.01124,89141.0,89137.0,0.01121868]
[1766731705498,0.01124,89141.0,89135.0,0.07893893]
[1766731705499,0.01124,89141.0,89136.0,0.07893881]
[1766731706133,0.01124,89141.0,89137.0,0.01121868]
[1766731707113,0.01124,89141.0,89138.0,0.01121855]
[1766731707445,0.01124,89147.0,89139.0,0.07893843]
[1766731707654,0.39922795,89150.0,89139.0,0.07893843]
[1766731707655,0.39922795,89150.0,89141.0,0.06772]
[1766731707793,0.01124,89147.0,89141.0,0.06772]
[1766731707998,0.01124,89147.0,89143.0,0.01121793]
[1766731708198,0.01124,89149.0,89143.0,0.01121793]
[1766731708420,0.01124,89149.0,89144.0,0.0112178]
[1766731709232,0.01124,89149.0,89145.0,0.01121767]
[1766731709426,0.01124,89149.0,89144.0,0.0112178]
[1766731709631,0.000549,89144.0,89142.0,0.05609028]
[1766731709928,0.01124,89149.0,89142.0,0.05609028]
[1766731709929,0.01124,89149.0,89145.0,0.01121767]
[1766731710344,0.01124,89149.0,89144.0,0.0112178]
[1766731710582,0.01124,89149.0,89145.0,0.01121767]
[1766731711759,0.01121629,89156.0,89148.0,0.06772]
[1766731711927,0.01124,89155.0,89148.0,0.06772]
[1766731714236,0.02245642,89155.0,89148.0,0.06772]
[1766731714440,0.02245642,89155.0,89148.0,0.04761912]
[1766731714441,0.01121679,89152.0,89148.0,0.04761912]
[1766731714647,0.01121679,89152.0,89141.0,0.01121818]
[1766731714845,0.39922795,89151.0,89142.0,0.01121805]
[1766731715429,0.01121704,89150.0,89141.0,0.07893818]
[1766731715634,0.39922795,89151.0,89141.0,0.13502869]
[1766731715875,0.39922795,89151.0,89142.0,0.01121805]
[1766731716045,0.39922795,89151.0,89143.0,0.05608965]
[1766731716246,0.39922795,89151.0,89143.0,0.12380965]
[1766731716434,0.39922795,89151.0,89145.0,0.01121767]
[1766731716777,0.42168437,89155.0,89145.0,0.01121767]
[1766731716953,0.42168437,89155.0,89146.0,0.01121755]
[1766731717329,0.01121654,89154.0,89145.0,0.01121767]
[1766731717533,0.42168437,89155.0,89145.0,0.01121767]
[1766731717829,0.42168437,89155.0,89146.0,0.01121755]
[1766731718378,0.47776682,89155.0,89144.0,0.06772]
[1766731718701,0.01121667,89153.0,89144.0,0.0789378]
[1766731718860,0.41044449,89154.0,89145.0,0.01121767]
[1766731719469,0.01121667,89153.0,89144.0,0.06772]
[1766731719861,0.01121667,89153.0,89144.0,0.0789378]
[1766731720020,0.01121679,89152.0,89144.0,0.06717]
[1766731720225,0.01121667,89153.0,89144.0,0.06717]
[1766731720570,0.01121679,89152.0,89144.0,0.06717]
[1766731720920,0.01121679,89152.0,89142.0,0.01121805]
[1766731720921,0.01121692,89151.0,89142.0,0.01121805]
[1766731721576,0.01121679,89152.0,89143.0,0.06772]
[1766731722225,0.01121692,89151.0,89143.0,0.06772]
[1766731723294,0.01121667,89153.0,89144.0,0.0112178]
[1766731723529,0.01121667,89153.0,89143.0,0.07893793]
[1766731723737,0.01121679,89152.0,89143.0,0.07893793]
[1766731724226,0.01121667,89153.0,89143.0,0.07893793]
[1766731725431,0.01121667,89153.0,89144.0,0.0112178]
[1766731725639,0.01121667,89153.0,89143.0,0.07893793]
[1766731727164,0.01121679,89152.0,89143.0,0.06772]
[1766731727470,0.01121679,89152.0,89143.0,0.07893793]
[1766731727773,0.01121692,89151.0,89143.0,0.06772]
[1766731728286,0.01121679,89152.0,89143.0,0.06772]
[1766731728568,0.01121667,89153.0,89143.0,0.07893793]
[1766731728722,0.01121667,89153.0,89144.0,0.0112178]
[1766731729127,0.01121667,89153.0,89143.0,0.07893793]
[1766731729295,0.06730042,89153.0,89143.0,0.06772]
[1766731729446,0.01121679,89152.0,89143.0,0.06772]
[1766731729644,0.01121692,89151.0,89143.0,0.06772]
[1766731729954,0.06730114,89152.0,89143.0,0.06772]
[1766731730160,0.01121692,89151.0,89140.0,0.07394]
[1766731730354,0.41044499,89150.0,89141.0,0.01121818]
[1766731730559,0.41044499,89150.0,89141.0,0.07394]
[1766731730781,0.41044499,89150.0,89141.0,0.08515818]
[1766731731393,0.41044499,89150.0,89141.0,0.07394]
[1766731731996,0.01121717,89149.0,89141.0,0.07394]
[1766731733765,0.0112173,89148.0,89141.0,0.07394]
[1766731734066,0.06730004,89153.0,89141.0,0.07394]
[1766731734266,0.39922795,89151.0,89148.0,0.000549]
[1766731734475,0.01121679,89152.0,89148.0,0.000549]
[1766731734669,0.01121679,89152.0,89146.0,0.07394]